fUSD/lending_fUSD_20250226
["ID","MTS","AMOUNT","RATE_DAILY","PERIOD"]
[354624278,1740596002973,-190.4777279,0.00045495,2]
[354624279,1740596002984,-1206.4152043,0.00045495,2]
[354624280,1740596002994,-1079.8288229,0.00045495,2]
[354624281,1740596003004,-953.2424415,0.00045495,2]
[354624282,1740596003013,-826.65606,0.00045495,2]
[354624283,1740596003026,-700.0696786,0.00045495,2]
[354624284,1740596003036,-573.4832972,0.00045495,2]
[354624285,1740596003046,-17361.5513093,0.00045495,2]
[354624286,1740596003055,-15539.8435355,0.00045495,2]
[354624287,1740596003065,-13718.1357616,0.00045495,2]
[354624288,1740596003075,-11896.4279877,0.00045495,2]
[354624289,1740596003084,-10074.7202139,0.00045495,2]
[354624290,1740596003094,-8253.01244,0.00045495,2]
[354624291,1740596003104,-177.9898502,0.00045495,2]
[354624292,1740596003113,-177.9898502,0.00045495,2]
[354624293,1740596003123,-177.9898502,0.00045495,2]
[354624294,1740596003132,-177.9898502,0.00045495,2]
[354624295,1740596003141,-177.9898502,0.00045495,2]
[354624296,1740596003151,-177.9898502,0.00045495,2]
[354624297,1740596003160,-4551.3790076,0.00045495,2]
[354624298,1740596003169,-4080.9843336,0.00045495,2]
[354624299,1740596003179,-3610.5896595,0.00045495,2]
[354624300,1740596003190,-3140.1949854,0.00045495,2]
[354624301,1740596003199,-2669.8003114,0.00045495,2]
[354624302,1740596003208,-2199.4056373,0.00045495,2]
[354624303,1740596003218,-5644.8478724,0.00045495,2]
[354624304,1740596003228,-5061.4408719,0.00045495,2]
[354624305,1740596003237,-4478.0338714,0.00045495,2]
[354624306,1740596003246,-3894.6268708,0.00045495,2]
[354624307,1740596003256,-3311.2198703,0.00045495,2]
[354624308,1740596003266,-2727.8128698,0.00045495,2]
[354624309,1740596003276,-620.42,0.00045495,120]
[354624310,1740596003286,-2000.0,0.00045499,120]
[354624311,1740596003296,-503.025429,0.00045499,120]
[354624312,1740596003305,-500.0,0.00045499,120]
[354624313,1740596003314,-1060.0,0.000455,30]
[354624314,1740596003324,-1000000.0,0.000455,120]
[354624315,1740596003333,-1162727.3681364,0.000455,120]
[354624316,1740596003343,-500.0,0.000455,62]
[354624317,1740596003352,-500.0,0.000455,62]
[354624318,1740596003362,-656.11291544,0.000455,62]
[354624319,1740596003372,-150.0,0.000455,14]
[354624320,1740596003382,-2110.0,0.000455,30]
[354624321,1740596003391,-4594.34,0.000455,2]
[354624322,1740596003400,-4594.34,0.000455,2]
[354624323,1740596003410,-4594.34,0.000455,2]
[354624324,1740596003420,-4594.34,0.000455,2]
[354624325,1740596003443,-4594.34,0.000455,2]
[354624326,1740596003453,-4594.34,0.000455,2]
[354624327,1740596003462,-4594.34,0.000455,2]
[354624328,1740596003471,-4594.34,0.000455,2]
[354624329,1740596003483,-4594.34,0.000455,2]
[354624330,1740596003492,-4594.34,0.000455,2]
[354624331,1740596003502,-4594.34,0.000455,2]
[354624332,1740596003511,-4594.34,0.000455,2]
[354624333,1740596003520,-4594.34,0.000455,2]
[354624334,1740596003530,-4594.34,0.000455,2]
[354624335,1740596003540,-4594.34,0.000455,2]
[354624336,1740596003550,-4594.34,0.000455,2]
[354624337,1740596003560,-4594.34,0.000455,2]
[354624338,1740596003570,-4594.34,0.000455,2]
[354624339,1740596003580,-4594.34,0.000455,2]
[354624340,1740596003589,-4594.37479387,0.000455,2]
[354624341,1740596003599,-321.42115881,0.00045506,30]
[354624342,1740596003608,-155.44354992,0.00045506,30]
[354624343,1740596003618,-679.2030714,0.00045526,2]
[354624344,1740596003627,-609.0059933,0.00045526,2]
[354624345,1740596003637,-538.8089153,0.00045526,2]
[354624346,1740596003646,-468.6118373,0.00045526,2]
[354624347,1740596003656,-398.4147592,0.00045526,2]
[354624348,1740596003666,-328.2176812,0.00045526,2]
[354624349,1740596003676,-321.42115881,0.00045557,30]
[354624350,1740596003685,-155.44354992,0.00045557,30]
[354624351,1740596003695,-150.0,0.00045566,30]
[354624352,1740596003704,-22328.33619218,0.00045573,120]
[354624353,1740596003714,-150.0,0.00045603,30]
[354624354,1740596003723,-321.42115881,0.00045607,30]
[354624355,1740596003733,-155.44354992,0.00045607,30]
[354624356,1740596003743,-1315.3938,0.00045616,21]
[354624357,1740596003752,-5200.0,0.00045624,120]
[354624358,1740596003762,-1500.0,0.00045624,120]
[354624359,1740596003771,-1700.0,0.00045624,120]
[354624360,1740596003780,-150.0,0.00045643,30]
[354624361,1740596003790,-321.42115881,0.00045658,30]
[354624362,1740596003800,-155.44354992,0.00045658,30]
[354624363,1740596003810,-2000.0,0.00045678,31]
[354624364,1740596003820,-153.48,0.000457,39]
[354624365,1740596003829,-153.48,0.000457,39]
[354624366,1740596003839,-153.48,0.000457,39]
[354624367,1740596003848,-153.48,0.000457,39]
[354624368,1740596003858,-153.48,0.000457,39]
[354624369,1740596003868,-153.48,0.000457,39]
[354624370,1740596003878,-271.954819,0.00045705,30]
[354624371,1740596003887,-321.42115881,0.00045708,30]
[354624372,1740596003897,-155.44354992,0.00045708,30]
[354624373,1740596003907,-150.0,0.0004572,30]
[354624374,1740596003916,-1000000.0,0.0004575,120]
[354624375,1740596003931,-2000000.0,0.0004575,120]
[354624376,1740596003951,-1607.78,0.00045753,120]
[354624377,1740596003961,-2802.17,0.00045753,120]
[354624378,1740596003971,-880.64,0.00045753,30]
[354624379,1740596003983,-340.62,0.00045753,30]
[354624380,1740596003993,-688.2,0.00045753,30]
[354624381,1740596004003,-301.28,0.00045753,30]
[354624382,1740596004015,-150.0,0.00045753,30]
[354624383,1740596004027,-300.0,0.00045753,30]
[354624384,1740596004037,-321.42115881,0.00045759,30]
[354624385,1740596004046,-155.44354992,0.00045759,30]
[354624386,1740596004056,-150.0,0.00045797,30]
[354624387,1740596004066,-1000000.0,0.000458,120]
[354624388,1740596004076,-321.42115881,0.00045809,30]
[354624389,1740596004086,-155.44354992,0.00045809,30]
[354624390,1740596004096,-150.0,0.0004582,30]
[354624391,1740596004106,-321.42115881,0.0004586,30]
[354624392,1740596004115,-155.44354992,0.0004586,30]
[354624393,1740596004125,-150.0,0.00045873,30]
[354624394,1740596004135,-5200.0,0.00045898,120]
[354624395,1740596004144,-1500.0,0.00045898,120]
[354624396,1740596004154,-1700.0,0.00045898,120]
[354624397,1740596004163,-56380.95099039,0.000459,120]
[354624398,1740596004173,-197.08744091,0.000459,120]
[354624399,1740596004183,-197.0874409,0.000459,120]
[354624400,1740596004192,-197.0874409,0.000459,120]
[354624401,1740596004202,-197.0874409,0.000459,120]
[354624402,1740596004212,-197.0874409,0.000459,120]
[354624403,1740596004222,-197.0874409,0.000459,120]
[354624404,1740596004232,-197.0874409,0.000459,120]
[354624405,1740596004242,-197.0874409,0.000459,120]
[354624406,1740596004251,-197.0874409,0.000459,120]
[354624407,1740596004262,-197.0874409,0.000459,120]
[354624408,1740596004273,-321.42115881,0.0004591,30]
[354624409,1740596004284,-155.44354992,0.0004591,30]
[354624410,1740596004294,-150.0,0.0004595,30]
[354624411,1740596004303,-321.42115881,0.0004596,30]
[354624412,1740596004313,-155.44354992,0.0004596,30]
[354624413,1740596004323,-5183.64783849,0.00046,60]
[354624414,1740596004334,-1000000.0,0.00046,120]
[354624415,1740596004344,-1000000.0,0.00046,120]
[354624416,1740596004354,-1000000.0,0.00046,120]
[354624417,1740596004364,-3000.0,0.00046,120]
[354624418,1740596004375,-1373.0,0.00046,120]
[354624419,1740596004384,-20000.0,0.00046,120]
[354624420,1740596004394,-2110.0,0.00046,30]
[354624421,1740596004405,-321.42115881,0.00046011,30]
[354624422,1740596004415,-155.44354992,0.00046011,30]
[354624423,1740596004425,-1607.78,0.00046027,120]
[354624424,1740596004447,-2802.17,0.00046027,120]
[354624425,1740596004457,-150.0,0.00046027,30]
[354624426,1740596004467,-150.0,0.00046037,30]
[354624427,1740596004477,-321.42115881,0.00046061,30]
[354624428,1740596004486,-155.44354992,0.00046061,30]
[354624429,1740596004496,-1000000.0,0.000461,120]
[354624430,1740596004506,-150.0,0.00046104,30]
[354624431,1740596004515,-321.42115881,0.00046112,30]
[354624432,1740596004525,-155.44354992,0.00046112,30]
[354624433,1740596004535,-321.42115881,0.00046162,30]
[354624434,1740596004545,-155.44354992,0.00046162,30]
[354624435,1740596004555,-5200.0,0.00046172,120]
[354624436,1740596004565,-1500.0,0.00046172,120]
[354624437,1740596004575,-1700.0,0.00046172,120]
[354624438,1740596004585,-150.0,0.00046181,30]
[354624439,1740596004595,-321.42115881,0.00046213,30]
[354624440,1740596004604,-155.44354992,0.00046213,30]
[354624441,1740596004614,-1000000.0,0.0004625,120]
[354624442,1740596004624,-1000000.0,0.0004625,120]
[354624443,1740596004634,-150.0,0.00046254,30]
[354624444,1740596004644,-150.0,0.00046258,30]
[354624445,1740596004654,-321.42115881,0.00046263,30]
[354624446,1740596004664,-155.44354992,0.00046263,30]
[354624447,1740596004674,-965.29,0.00046288,2]
[354624448,1740596004690,-1607.78,0.00046301,120]
[354624449,1740596004700,-2802.17,0.00046301,120]
[354624450,1740596004710,-321.42115881,0.00046314,30]
[354624451,1740596004720,-155.44354992,0.00046314,30]
[354624452,1740596004729,-151.0,0.00046329,120]
[354624453,1740596004739,-150.0,0.00046335,30]
[354624454,1740596004748,-321.42115881,0.00046364,30]
[354624455,1740596004757,-155.44354992,0.00046364,30]
[354624456,1740596004767,-500.0,0.00046365,120]
[354624457,1740596004776,-150.0,0.00046411,30]
[354624458,1740596004786,-321.42115881,0.00046414,30]
[354624459,1740596004796,-155.44354992,0.00046414,30]
[354624460,1740596004805,-2000.0,0.00046448,120]
[354624461,1740596004815,-321.42115881,0.00046465,30]
[354624462,1740596004825,-155.44354992,0.00046465,30]
[354624463,1740596004835,-999.0,0.00046465,120]
[354624464,1740596004845,-999.0,0.00046465,120]
[354624465,1740596004854,-1084.18711495,0.00046465,120]
[354624466,1740596004864,-150.0,0.00046471,30]
[354624467,1740596004874,-150.0,0.00046488,30]
[354624468,1740596004884,-1000.0,0.000465,120]
[354624469,1740596004894,-1000.0,0.000465,30]
[354624470,1740596004904,-1000000.0,0.000465,120]
[354624471,1740596004914,-1000000.0,0.000465,120]
[354624472,1740596004923,-3000.0,0.000465,120]
[354624473,1740596004935,-2110.0,0.000465,30]
[354624474,1740596004944,-321.42115881,0.00046515,30]
[354624475,1740596004955,-155.44354992,0.00046515,30]
[354624476,1740596004965,-150.0,0.00046565,30]
[354624477,1740596004975,-321.42115881,0.00046566,30]
[354624478,1740596004986,-155.44354992,0.00046566,30]
[354624479,1740596004997,-1607.78,0.00046575,120]
[354624480,1740596005006,-2802.17,0.00046575,120]
[354624481,1740596005016,-1994.37,0.00046575,120]
[354624482,1740596005028,-1994.37,0.00046575,120]
[354624483,1740596005040,-1994.37,0.00046575,120]
[354624484,1740596005051,-1994.37,0.00046575,120]
[354624485,1740596005061,-1994.37,0.00046575,120]
[354624486,1740596005071,-1994.37,0.00046575,120]
[354624487,1740596005081,-1994.37,0.00046575,120]
[354624488,1740596005091,-1994.37,0.00046575,120]
[354624489,1740596005102,-1994.37,0.00046575,120]
[354624490,1740596005111,-1994.37,0.00046575,120]
[354624491,1740596005121,-1994.37,0.00046575,120]
[354624492,1740596005131,-1994.37,0.00046575,120]
[354624493,1740596005141,-1994.37,0.00046575,120]
[354624494,1740596005151,-1994.37,0.00046575,120]
[354624495,1740596005161,-1994.37,0.00046575,120]
[354624496,1740596005171,-1994.37,0.00046575,120]
[354624497,1740596005184,-1994.37,0.00046575,120]
[354624498,1740596005195,-1994.37,0.00046575,120]
[354624499,1740596005204,-1994.37,0.00046575,120]
[354624500,1740596005215,-1994.37,0.00046575,120]
[354624501,1740596005224,-1994.37,0.00046575,120]
[354624502,1740596005235,-1994.37,0.00046575,120]
[354624503,1740596005244,-1994.37,0.00046575,120]
[354624504,1740596005254,-1994.57870404,0.00046575,120]
[354624505,1740596005264,-278.16,0.00046575,30]
[354624506,1740596005275,-344.13,0.00046575,30]
[354624507,1740596005285,-499.999999,0.000466,10]
[354624508,1740596005294,-426.4,0.000466,2]
[354624509,1740596005304,-3000.0,0.000466,2]
[354624510,1740596005313,-321.42115881,0.00046616,30]
[354624511,1740596005323,-155.44354992,0.00046616,30]
[354624512,1740596005333,-150.0,0.00046642,30]
[354624513,1740596005595,-321.42115881,0.00046667,30]
[354624514,1740596005610,-155.44354992,0.00046667,30]
[354624515,1740596005619,-150.0,0.00046689,30]
[354624516,1740596005629,-321.42115881,0.00046717,30]
[354624517,1740596005639,-155.44354992,0.00046717,30]
[354624518,1740596005649,-150.0,0.00046719,30]
[354624519,1740596005659,-5200.0,0.0004672,120]
[354624520,1740596005668,-1500.0,0.0004672,120]
[354624521,1740596005679,-1700.0,0.0004672,120]
[354624522,1740596005688,-321.42115881,0.00046768,30]
[354624523,1740596005698,-155.44354992,0.00046768,30]
[354624524,1740596005707,-150.0,0.00046796,30]
[354624525,1740596005717,-321.42115881,0.00046818,30]
[354624526,1740596005727,-155.44354992,0.00046818,30]
[354624527,1740596005736,-500.0,0.00046832,120]
[354624528,1740596005747,-1607.78,0.00046849,120]
[354624529,1740596005759,-2802.17,0.00046849,120]
[354624530,1740596005769,-367.0,0.00046849,90]
[354624531,1740596005779,-8500.0,0.00046856,16]
[354624532,1740596005788,-8500.0,0.00046865,16]
[354624533,1740596005798,-321.42115881,0.00046869,30]
[354624534,1740596005807,-155.44354992,0.00046869,30]
[354624535,1740596005817,-150.0,0.00046872,30]
[354624536,1740596005826,-8500.0,0.00046874,16]
[354624537,1740596005836,-8500.0,0.00046882,16]
[354624538,1740596005846,-8500.0,0.00046891,16]
[354624539,1740596005856,-8500.0,0.000469,16]
[354624540,1740596005867,-150.0,0.00046906,30]
[354624541,1740596005876,-321.42115881,0.00046919,30]
[354624542,1740596005886,-155.44354992,0.00046919,30]
[354624543,1740596005895,-8500.0,0.00046946,16]
[354624544,1740596005904,-150.0,0.00046949,30]
[354624545,1740596005914,-1000.0,0.00046954,2]
[354624546,1740596005924,-8500.0,0.00046955,16]
[354624547,1740596005934,-8500.0,0.00046964,16]
[354624548,1740596005945,-321.42115881,0.00046969,30]
[354624549,1740596005954,-155.44354992,0.00046969,30]
[354624550,1740596005964,-8500.0,0.00046972,16]
[354624551,1740596005974,-8500.0,0.00046981,16]
[354624552,1740596005984,-8500.0,0.00046981,16]
[354624553,1740596006000,-8500.0,0.00046982,16]
[354624554,1740596006009,-8500.0,0.0004699,16]
[354624555,1740596006019,-8500.0,0.0004699,16]
[354624556,1740596006029,-8500.0,0.0004699,16]
[354624557,1740596006042,-8500.0,0.00046991,16]
[354624558,1740596006052,-380.55136291,0.00047,2]
[354624559,1740596006062,-1000000.0,0.00047,120]
[354624560,1740596006073,-1000.0,0.00047,120]
[354624561,1740596006083,-1000000.0,0.00047,120]
[354624562,1740596006092,-1000.0,0.00047,90]
[354624563,1740596006102,-8500.0,0.00047,16]
[354624564,1740596006112,-367.0,0.00047,90]
[354624565,1740596006122,-2110.0,0.00047,30]
[354624566,1740596006131,-321.42115881,0.0004702,30]
[354624567,1740596006141,-155.44354992,0.0004702,30]
[354624568,1740596006151,-150.0,0.00047026,30]
[354624569,1740596006161,-321.42115881,0.0004707,30]
[354624570,1740596006171,-155.44354992,0.0004707,30]
[354624571,1740596006183,-150.0,0.00047103,30]
[354624572,1740596006193,-321.42115881,0.00047121,30]
[354624573,1740596006203,-155.44354992,0.00047121,30]
[354624574,1740596006213,-150.0,0.00047123,30]
[354624575,1740596006222,-1607.78,0.00047123,120]
[354624576,1740596006232,-2802.25115821,0.00047123,120]
[354624577,1740596006242,-367.0,0.00047123,90]
[354624578,1740596006252,-321.42115881,0.00047171,30]
[354624579,1740596006262,-155.44354992,0.00047171,30]
[354624580,1740596006271,-150.0,0.0004718,30]
[354624581,1740596006281,-321.42115881,0.00047222,30]
[354624582,1740596006291,-155.44354992,0.00047222,30]
[354624583,1740596006300,-500.0,0.00047231,120]
[354624584,1740596006310,-150.0,0.00047257,30]
[354624585,1740596006320,-5200.0,0.00047268,120]
[354624586,1740596006329,-1500.0,0.00047268,120]
[354624587,1740596006339,-1700.0,0.00047268,120]
[354624588,1740596006348,-321.42115881,0.00047272,30]
[354624589,1740596006358,-155.44354992,0.00047272,30]
[354624590,1740596006367,-4571.6,0.00047318,117]
[354624591,1740596006376,-321.42115881,0.00047323,30]
[354624592,1740596006386,-155.44354992,0.00047323,30]
[354624593,1740596006396,-150.0,0.00047333,30]
[354624594,1740596006405,-150.0,0.0004734,30]
[354624595,1740596006415,-321.42115881,0.00047373,30]
[354624596,1740596006427,-155.44354992,0.00047373,30]
[354624597,1740596006437,-152.0,0.00047383,6]
[354624598,1740596006447,-2026.53561,0.00047396,120]
[354624599,1740596006457,-1607.83504989,0.00047397,120]
[354624600,1740596006467,-367.0,0.00047397,90]
[354624601,1740596006476,-439.56,0.00047397,30]
[354624602,1740596006486,-150.0,0.00047397,30]
[354624603,1740596006495,-150.0,0.0004741,30]
[354624604,1740596006505,-321.42115881,0.00047423,30]
[354624605,1740596006515,-155.44354992,0.00047423,30]
[354624606,1740596006525,-321.42115881,0.00047474,30]
[354624607,1740596006535,-155.44354992,0.00047474,30]
[354624608,1740596006545,-150.0,0.00047487,30]
[354624609,1740596006555,-3000.0,0.000475,120]
[354624610,1740596006565,-2110.0,0.000475,30]
[354624611,1740596006576,-321.42115881,0.00047524,30]
[354624612,1740596006586,-155.44354992,0.00047524,30]
[354624613,1740596006596,-150.0,0.00047557,30]
[354624614,1740596006606,-150.0,0.00047564,30]
[354624615,1740596006616,-321.42115881,0.00047575,30]
[354624616,1740596006625,-155.44354992,0.00047575,30]
[354624617,1740596006635,-5200.82802703,0.000476,2]
[354624618,1740596006645,-321.42115881,0.00047625,30]
[354624619,1740596006655,-155.44354992,0.00047625,30]
[354624620,1740596006664,-150.0,0.00047641,30]
[354624621,1740596006674,-151.0,0.00047644,120]
[354624622,1740596006690,-367.0,0.00047671,90]
[354624623,1740596006700,-321.42115881,0.00047676,30]
[354624624,1740596006710,-155.44354992,0.00047676,30]
[354624625,1740596006720,-153.48,0.000477,42]
[354624626,1740596006730,-153.48,0.000477,42]
[354624627,1740596006740,-153.48,0.000477,42]
[354624628,1740596006750,-153.48,0.000477,42]
[354624629,1740596006759,-153.48,0.000477,42]
[354624630,1740596006769,-153.48,0.000477,42]
[354624631,1740596006778,-150.0,0.00047718,30]
[354624632,1740596006788,-321.42115881,0.00047726,30]
[354624633,1740596006797,-155.44354992,0.00047726,30]
[354624634,1740596006807,-173.4,0.00047755,120]
[354624635,1740596006817,-553.79,0.00047767,30]
[354624636,1740596006826,-553.79,0.00047767,30]
[354624637,1740596006836,-553.79,0.00047767,30]
[354624638,1740596006846,-553.79,0.00047767,30]
[354624639,1740596006856,-150.0,0.00047774,30]
[354624640,1740596006865,-1060.0,0.00047775,30]
[354624641,1740596006875,-321.42115881,0.00047777,30]
[354624642,1740596006885,-155.44354992,0.00047777,30]
[354624643,1740596006895,-150.0,0.00047794,30]
[354624644,1740596006904,-5200.0,0.00047816,120]
[354624645,1740596006913,-1500.0,0.00047816,120]
[354624646,1740596006923,-1700.0,0.00047816,120]
[354624647,1740596006935,-321.42115881,0.00047827,30]
[354624648,1740596006945,-155.44354992,0.00047827,30]
[354624649,1740596006955,-151.0,0.00047836,120]
[354624650,1740596006964,-150.0,0.00047871,30]
[354624651,1740596006975,-321.42115881,0.00047878,30]
[354624652,1740596006985,-155.44354992,0.00047878,30]
[354624653,1740596006999,-5000.0,0.0004789,30]
[354624654,1740596007008,-204.0,0.000479,44]
[354624655,1740596007019,-321.42115881,0.00047928,30]
[354624656,1740596007028,-155.44354992,0.00047928,30]
[354624657,1740596007040,-150.0,0.00047948,30]
[354624658,1740596007050,-321.42115881,0.00047978,30]
[354624659,1740596007060,-155.44354992,0.00047978,30]
[354624660,1740596007070,-1883.88025617,0.0004798,14]
[354624661,1740596007081,-5800.0,0.0004798,14]
[354624662,1740596007092,-150.0,0.00047992,30]
[354624663,1740596007102,-62265.94763936,0.00047999,10]
[354624664,1740596007112,-8443.4,0.00048,120]
[354624665,1740596007121,-8309.69348684,0.00048,120]
[354624666,1740596007131,-2000000.0,0.00048,120]
[354624667,1740596007140,-1025.25981379,0.00048,120]
[354624668,1740596007150,-3000.0,0.00048,120]
[354624669,1740596007159,-1000000.0,0.00048,120]
[354624670,1740596007169,-1397.27,0.00048,30]
[354624671,1740596007181,-150.0,0.00048025,30]
[354624672,1740596007191,-321.42115881,0.00048029,30]
[354624673,1740596007200,-155.44354992,0.00048029,30]
[354624674,1740596007210,-553.79,0.00048041,30]
[354624675,1740596007220,-553.79,0.00048041,30]
[354624676,1740596007230,-321.42115881,0.00048079,30]
[354624677,1740596007240,-155.44354992,0.00048079,30]
[354624678,1740596007249,-503.319228,0.00048097,120]
[354624679,1740596007259,-150.0,0.00048102,30]
[354624680,1740596007268,-1275.0,0.00048124,2]
[354624681,1740596007277,-2028.0,0.00048124,2]
[354624682,1740596007287,-570.0,0.00048124,2]
[354624683,1740596007297,-1456.061,0.00048124,2]
[354624684,1740596007306,-784.0,0.00048124,2]
[354624685,1740596007315,-1267.0,0.00048124,2]
[354624686,1740596007325,-790.812,0.00048124,2]
[354624687,1740596007335,-515.273,0.00048124,2]
[354624688,1740596007345,-1425.0,0.00048124,2]
[354624689,1740596007356,-4034.0,0.00048124,2]
[354624690,1740596007366,-1010.0,0.00048124,2]
[354624691,1740596007376,-3922.0,0.00048124,2]
[354624692,1740596007385,-150.0,0.00048124,2]
[354624693,1740596007395,-1111.0,0.00048124,2]
[354624694,1740596007405,-321.42115881,0.0004813,30]
[354624695,1740596007414,-155.44354992,0.0004813,30]
[354624696,1740596007424,-500.0,0.00048166,120]
[354624697,1740596007436,-208.26,0.00048166,120]
[354624698,1740596007446,-150.0,0.00048179,30]
[354624699,1740596007455,-321.42115881,0.0004818,30]
[354624700,1740596007464,-155.44354992,0.0004818,30]
[354624701,1740596007474,-150.0,0.00048209,30]
[354624702,1740596007483,-150.0,0.00048219,30]
[354624703,1740596007492,-300.0,0.00048219,30]
[354624704,1740596007501,-439.56,0.00048219,30]
[354624705,1740596007511,-321.42115881,0.00048231,30]
[354624706,1740596007522,-155.44354992,0.00048231,30]
[354624707,1740596007532,-150.0,0.00048256,30]
[354624708,1740596007542,-321.42115881,0.00048281,30]
[354624709,1740596007551,-155.44354992,0.00048281,30]
[354624710,1740596007560,-553.79,0.00048315,30]
[354624711,1740596007570,-553.79,0.00048315,30]
[354624712,1740596007579,-321.42115881,0.00048332,30]
[354624713,1740596007588,-155.44354992,0.00048332,30]
[354624714,1740596007598,-150.0,0.00048332,30]
[354624715,1740596007607,-5200.0,0.00048364,120]
[354624716,1740596007616,-1500.0,0.00048364,120]
[354624717,1740596007626,-1700.0,0.00048364,120]
[354624718,1740596007635,-1266.0,0.0004838,30]
[354624719,1740596007644,-321.42115881,0.00048382,30]
[354624720,1740596007653,-155.44354992,0.00048382,30]
[354624721,1740596007662,-150.0,0.00048409,30]
[354624722,1740596007672,-150.0,0.00048426,30]
[354624723,1740596007685,-321.42115881,0.00048432,30]
[354624724,1740596007696,-155.44354992,0.00048432,30]
[354624725,1740596007706,-321.42115881,0.00048483,30]
[354624726,1740596007716,-155.44354992,0.00048483,30]
[354624727,1740596007726,-150.0,0.00048486,30]
[354624728,1740596007735,-1500.0,0.000485,120]
[354624729,1740596007745,-1300.00000005,0.000485,120]
[354624730,1740596007755,-1000000.0,0.000485,120]
[354624731,1740596007764,-321.42115881,0.00048533,30]
[354624732,1740596007774,-155.44354992,0.00048533,30]
[354624733,1740596007784,-965.29,0.00048552,2]
[354624734,1740596007793,-150.0,0.00048563,30]
[354624735,1740596007802,-321.42115881,0.00048584,30]
[354624736,1740596007811,-155.44354992,0.00048584,30]
[354624737,1740596007820,-553.79,0.00048589,30]
[354624738,1740596007830,-553.79,0.00048589,30]
[354624739,1740596007838,-321.42115881,0.00048634,30]
[354624740,1740596007848,-155.44354992,0.00048634,30]
[354624741,1740596007857,-150.0,0.0004864,30]
[354624742,1740596007866,-150.0,0.00048643,30]
[354624743,1740596007875,-321.42115881,0.00048685,30]
[354624744,1740596007885,-155.44354992,0.00048685,30]
[354624745,1740596007894,-150.0,0.0004871,20]
[354624746,1740596007903,-150.0,0.00048717,30]
[354624747,1740596007912,-321.42115881,0.00048735,30]
[354624748,1740596007922,-155.44354992,0.00048735,30]
[354624749,1740596007933,-5000.0,0.0004875,30]
[354624750,1740596007942,-321.42115881,0.00048786,30]
[354624751,1740596007952,-155.44354992,0.00048786,30]
[354624752,1740596007961,-150.0,0.00048793,30]
[354624753,1740596008061,-234941.805,0.000488,120]
[354624754,1740596008070,-656.83264064,0.000488,120]
[354624755,1740596008079,-30072.92970574,0.000488,120]
[354624756,1740596008088,-2007.04560092,0.000488,120]
[354624757,1740596008098,-303.36627499,0.000488,120]
[354624758,1740596008107,-747.9,0.0004883,120]
[354624759,1740596008116,-321.42115881,0.00048836,30]
[354624760,1740596008125,-155.44354992,0.00048836,30]
[354624761,1740596008135,-150.0,0.0004886,30]
[354624762,1740596008144,-553.79,0.00048863,30]
[354624763,1740596008154,-553.79,0.00048863,30]
[354624764,1740596008163,-150.0,0.0004887,30]
[354624765,1740596008172,-1266.0,0.00048879,30]
[354624766,1740596008186,-321.42115881,0.00048887,30]
[354624767,1740596008195,-155.44354992,0.00048887,30]
[354624768,1740596008204,-367.0,0.00048904,90]
[354624769,1740596008214,-5200.0,0.00048912,120]
[354624770,1740596008223,-1500.0,0.00048912,120]
[354624771,1740596008233,-1700.0,0.00048912,120]
[354624772,1740596008242,-321.42115881,0.00048937,30]
[354624773,1740596008252,-155.44354992,0.00048937,30]
[354624774,1740596008261,-150.0,0.00048947,30]
[354624775,1740596008270,-151.0,0.00048959,120]
[354624776,1740596008280,-321.42115881,0.00048987,30]
[354624777,1740596008289,-155.44354992,0.00048987,30]